fUSD/lending_fUSD_20240906
["ID","MTS","AMOUNT","RATE_DAILY","PERIOD"]
[337307654,1725591139791,-168.05694264,0.00053589,120]
[337307655,1725591139829,-832.60137796,0.00053592,120]
[337307656,1725591139865,-2782.09447954,0.00053592,120]
[337307657,1725591139903,-2782.09447954,0.00053594,120]
[337307658,1725591139942,-176.89479826,0.00053595,120]
[337307659,1725591139980,-186.96444442,0.00053595,120]
[337307660,1725591140017,-832.60137796,0.00053595,120]
[337307661,1725591140052,-20648.30916332,0.00053599,120]
[337307662,1725591140090,-2168.60037334,0.000536,120]
[337307663,1725591140129,-7840.55,0.00053623,120]
[337307664,1725591140168,-901.14086428,0.00053698,120]
[337307665,1725591140206,-2578.879,0.000538,110]
[337307666,1725591140243,-1578.99,0.000538,90]
[337307667,1725591140277,-323.43,0.0005387,120]
[337307668,1725591140313,-21018.37,0.0005393,120]
[337307669,1725591140350,-251.73387214,0.0005398,120]
[337307670,1725591140389,-50000.0,0.00054,54]
[337307671,1725591140425,-2174.65996398,0.00054,90]
[337307672,1725591140460,-600.0,0.00054,120]
[337307673,1725591140494,-2000.0,0.00054,120]
[337307674,1725591140528,-17821.18838787,0.00054,120]
[337307675,1725591140565,-151.0,0.00054,120]
[337307676,1725591140600,-1000.0,0.00054,120]
[337307677,1725591140635,-151.0,0.00054329,120]
[337307678,1725591140676,-1011.82,0.00054345,76]
[337307679,1725591140712,-3156.69,0.00054794,120]
[337307680,1725591140746,-3156.69,0.00054794,120]
[337307681,1725591140783,-3156.69,0.00054794,120]
[337307682,1725591140818,-3156.69,0.00054794,120]
[337307683,1725591140853,-3156.69,0.00054794,120]
[337307684,1725591140889,-3156.69,0.00054794,120]
[337307685,1725591140924,-3156.69,0.00054794,120]
[337307686,1725591140958,-3156.69,0.00054794,120]
[337307687,1725591140991,-3156.69,0.00054794,120]
[337307688,1725591141024,-3156.69,0.00054794,120]
[337307689,1725591141056,-3156.69,0.00054794,120]
[337307690,1725591141089,-3156.69,0.00054794,120]
[337307691,1725591141123,-3156.69,0.00054794,120]
[337307692,1725591141156,-3156.69,0.00054794,120]
[337307693,1725591141191,-3156.69,0.00054794,120]
[337307694,1725591141222,-3156.69,0.00054794,120]
[337307695,1725591141256,-3156.69,0.00054794,120]
[337307696,1725591141290,-3156.69,0.00054794,120]
[337307697,1725591141627,-3156.69,0.00054794,120]
[337307698,1725591141686,-3156.69,0.00054794,120]
[337307699,1725591141723,-3156.69,0.00054794,120]
[337307700,1725591141758,-3156.69,0.00054794,120]
[337307701,1725591141792,-3156.69,0.00054794,120]
[337307702,1725591141827,-3156.82191528,0.00054794,120]
[337307703,1725591141864,-5013.77,0.00054794,120]
[337307704,1725591141898,-5013.77,0.00054794,120]
[337307705,1725591141932,-5013.77,0.00054794,120]
[337307706,1725591141967,-5013.77,0.00054794,120]
[337307707,1725591142004,-5013.77,0.00054794,120]
[337307708,1725591142042,-5013.77,0.00054794,120]
[337307709,1725591142079,-5013.77,0.00054794,120]
[337307710,1725591142118,-5013.77,0.00054794,120]
[337307711,1725591142155,-5013.77,0.00054794,120]
[337307712,1725591142193,-5013.77,0.00054794,120]
[337307713,1725591142232,-5013.77,0.00054794,120]
[337307714,1725591142270,-5013.77,0.00054794,120]
[337307715,1725591142307,-5013.77,0.00054794,120]
[337307716,1725591142345,-5013.77,0.00054794,120]
[337307717,1725591142382,-5013.77,0.00054794,120]
[337307718,1725591142416,-5013.77,0.00054794,120]
[337307719,1725591142451,-5013.77,0.00054794,120]
[337307720,1725591142486,-5013.77,0.00054794,120]
[337307721,1725591142522,-5013.77,0.00054794,120]
[337307722,1725591142557,-5013.77,0.00054794,120]
[337307723,1725591142592,-5013.77,0.00054794,120]
[337307724,1725591142627,-5013.77,0.00054794,120]
[337307725,1725591142663,-5013.77,0.00054794,120]
[337307726,1725591142698,-5013.90289061,0.00054794,120]
[337307727,1725591143854,10931.71130509,0.000442,120]
[337307728,1725591144912,10931.71130506,0.000442,120]
[337307729,1725591145888,160.0,0.00048,90]
[337307730,1725591149294,10931.71130506,0.000442,120]
[337307731,1725591150792,150.0,0.00051066,120]
[337307732,1725591154889,10931.71130506,0.000442,120]
[337307733,1725591159291,10931.71130506,0.000442,120]
[337307734,1725591170055,2584.21268,0.00054794,72]
[337307735,1725591170117,2584.21268,0.00054794,72]
[337307736,1725591170177,2584.21268,0.00054794,72]
[337307737,1725591170308,2584.21269,0.00054794,72]
[337307738,1725591170367,2584.21268,0.00054794,72]
[337307739,1725591170444,2584.21268,0.00054794,72]
[337307740,1725591306149,154.45,0.00010804,2]
[337307750,1725591556943,-250.0,0.00012693,2]
[337307751,1725591556966,-250.0,0.00012734,2]
[337307752,1725591556986,-168.50148898,0.0001274,2]
[337307753,1725591557008,-300.0,0.00012744,2]
[337307754,1725591557030,-4131.49851102,0.00012745,2]
[337307755,1725591576029,-6878.54148898,0.00012745,2]
[337307756,1725591576051,-1500.0,0.00012745,2]
[337307757,1725591576073,-624.31,0.00012777,2]
[337307758,1725591576094,-261.17,0.0001278,2]
[337307759,1725591576115,-961.53,0.00012833,2]
[337307760,1725591597596,-329.61,0.00012863,2]
[337307761,1725591597616,-150.0,0.0001287,2]
[337307762,1725591597636,-150.75966,0.0001287,2]
[337307763,1725591597655,-175.47490241,0.000129,2]
[337307764,1725591597677,-914.34292218,0.000129,2]
[337307765,1725591597698,-250.0,0.00012949,2]
[337307766,1725591597719,-579.81251541,0.00013,2]
[337307767,1725591734066,410.39,0.00012487,2]
[337307768,1725591782912,750.0,0.00011,2]
[337307770,1725591820603,-175.61336366,0.00012899,2]
[337307771,1725591820625,-175.9753931,0.000129,2]
[337307772,1725591820645,-179.73329302,0.000129,2]
[337307773,1725591820670,-153.81,0.0001299,2]
[337307774,1725591820689,-300.0,0.00012999,2]
[337307775,1725591820710,-1394.86795022,0.00013,2]
[337307776,1725591824425,162.63,0.00010663,2]
[337307777,1725591856087,1846.38,0.00012621,2]
[337307778,1725591887018,-7500.0,0.00013,2]
[337307780,1725591896883,250.0,0.00012661,2]
[337307784,1725591983758,-300.0,0.00012999,2]
[337307785,1725591983781,-4700.0,0.00013,2]
[337307786,1725591989630,-822.90862989,0.000129,2]
[337307787,1725591989652,-4177.09137011,0.00013,2]
[337307788,1725591993387,-5000.0,0.00013,2]
[337307789,1725592000928,-1050.0,0.00013,2]
[337307790,1725592010119,500.0,0.00012608,2]
[337307791,1725592041854,800.0,0.000127,4]
[337307792,1725592043971,1700.0,0.000128,4]
[337307793,1725592086240,440.52,0.00012537,2]
[337307797,1725592118476,250.0,0.00012554,2]
[337308126,1725592216730,499.45,0.00012528,2]
[337308397,1725592232093,-368.79004996,0.000129,4]
[337308400,1725592232292,-860.97154633,0.000129,4]
[337308401,1725592232810,250.0,0.00012528,2]
[337308407,1725592238219,-1370.23840371,0.000129,4]
[337308408,1725592238228,-634.59159629,0.00013,2]
[337308565,1725592240569,-12082.1418691,0.00013,2]
[337308607,1725592240978,-136.1055138,0.00013,2]
[337309008,1725592271111,821.97,0.00012583,2]
[337309009,1725592295231,198.21,0.00012559,2]
[337309010,1725592300378,-3850.0,0.00013,2]
[337309011,1725592307938,894.89851102,0.00012559,2]
[337309013,1725592379999,153.24,0.00010555,2]
[337309017,1725592667496,699.13,0.00025,60]
[337309018,1725592769815,-226.13,0.00012277,2]
[337309019,1725592769836,-410.98,0.00012288,2]
[337309020,1725592769856,-600.44,0.00012304,2]
[337309021,1725592769876,-1112.45,0.0001233,2]
[337309022,1725592852840,174.56,0.00010959,2]
[337309023,1725592873947,151.78,0.00010349,2]
[337309029,1725593238259,1832.0,0.00027,120]
[337309034,1725593329283,358.22,0.00011957,2]
[337309035,1725593344692,2435.67,0.00011988,2]
[337309036,1725593345999,359.0,0.00025,60]
[337309037,1725593354672,-519.64,0.00012033,2]
[337309039,1725593354702,-250.0,0.00012078,2]
[337309042,1725593354731,-250.0,0.00012188,2]
[337309044,1725593354759,-1000.73295757,0.000123,2]
[337309046,1725593354791,-250.0,0.00012312,2]
[337309047,1725593354821,-181.26,0.00012499,2]
[337309048,1725593354852,-170.39,0.00012511,2]
[337309049,1725593354887,-600.0,0.000126,4]
[337309050,1725593354916,-1063.89,0.000126,2]
[337309051,1725593354946,-2806.26465801,0.000126,2]
[337309052,1725593354982,-5902.89534199,0.000126,2]
[337309053,1725593355012,-194.83,0.00012694,2]
[337309054,1725593355044,-994.45227359,0.000127,4]
[337309055,1725593355083,-205.54772641,0.000127,4]
[337309056,1725593355115,-1800.0,0.000128,4]
[337309057,1725593355144,-368.80586459,0.00012842,2]
[337309058,1725593355175,-151.78,0.0001288,2]
[337309059,1725593355205,-635.86,0.0001288,2]
[337309060,1725593355235,-378.0996777,0.0001288,2]
[337309061,1725593358335,205.49,0.00011964,2]
[337309062,1725593367987,151.78,0.00010534,2]
[337309065,1725593387363,155.7,0.00010959,2]
[337309084,1725593432512,-250.0,0.00012438,2]
[337309085,1725593432522,-121.8903223,0.0001288,2]
[337309086,1725593432531,-300.0,0.00012899,2]
[337309087,1725593432541,-175.47490241,0.000129,2]
[337309088,1725593432551,-179.73329302,0.000129,2]
[337309089,1725593432560,-5833.82,0.000129,2]
[337309090,1725593432569,-2757.55,0.000129,2]
[337309091,1725593432578,-217.72,0.000129,2]
[337309092,1725593432587,-8415.35,0.000129,2]
[337309093,1725593432596,-1017.47,0.000129,2]
[337309094,1725593432604,-9402.01642788,0.000129,2]
[337309095,1725593432615,-10586.22357212,0.000129,2]
[337309096,1725593432625,-2400.0,0.000129,4]
[337309097,1725593432634,-740.61776691,0.000129,2]
[337309098,1725593432643,-2304.78421033,0.000129,2]
[337309099,1725593432652,-675.78876649,0.00013,2]
[337309100,1725593432698,-3416.88,0.00013,2]
[337309101,1725593432716,-1327.25709958,0.00013,2]
[337309265,1725593440646,-691.2502082,0.00013,2]
[337309284,1725593440904,-62.97818068,0.00013,2]
[337309763,1725593446459,-1580.25000003,0.00013,2]
[337313121,1725593586399,750.0,0.00011,2]
[337313125,1725593953440,150.17,0.00010248,2]
[337313130,1725594471101,205.49,0.00011987,2]
[337313131,1725594572110,-1457.17,0.00012024,2]
[337313132,1725594572141,-250.0,0.00012028,2]
[337313133,1725594572171,-415.72,0.0001205,2]
[337313134,1725594572202,-250.0,0.00012108,2]
[337313135,1725594572233,-2756.81,0.00012115,2]
[337313136,1725594572262,-170.4,0.00012137,2]
[337313137,1725594572291,-150.0,0.00012219,2]
[337313138,1725594572320,-584.28,0.00012247,2]
[337313139,1725594572351,-297.76,0.00012482,2]
[337313140,1725594572382,-300.0,0.000126,4]
[337313141,1725594572410,-670.62554691,0.000126,2]
[337313142,1725594572631,-329.36445309,0.000126,2]
[337313143,1725594572662,-324.75067332,0.000127,4]
[337313144,1725594576057,150.17,0.00010384,2]
[337313148,1725594631443,-421.24760668,0.00012638,2]
[337313149,1725594631454,-275.24932668,0.000127,4]
[337313150,1725594631463,-484.35312091,0.000128,4]
[337313151,1725594631474,-359.16532702,0.000128,4]
[337313152,1725594631586,-56.48155207,0.000128,4]
[337313153,1725594631595,-584.95187272,0.0001287,2]
[337313154,1725594631606,-1948.0,0.0001287,2]
[337313155,1725594631617,-467.04812728,0.0001287,2]
[337313156,1725594631627,-1200.0,0.000129,4]
[337313157,1725594631636,-150.0,0.00012999,2]
[337313158,1725594631645,-264.03862806,0.00013,2]
[337313159,1725594631684,-334.96137194,0.00013,2]
[337313160,1725594631695,-1912.78464868,0.00013,2]
[337313161,1725594631706,-2727.3619961,0.00013,2]
[337313162,1725594637484,-2930.9,0.00013,2]
[337313163,1725594637549,-8222.95254394,0.00013,2]
[337313164,1725594637845,-336.54121837,0.00013,2]
[337313338,1725594639638,-156.05,0.00012608,2]
[337313340,1725594639656,-205.45878163,0.00013,2]
[337313342,1725594639666,-4854.06665431,0.00013,2]
[337313344,1725594639677,-491.99923061,0.00013,2]
[337313346,1725594639689,-431.39001,0.00013,2]
[337313349,1725594639714,-3500.0,0.00013,2]
[337313351,1725594639726,-3153.00204471,0.00013,2]
[337313353,1725594639741,-588.2445,0.00013,2]
[337313358,1725594639784,-291.99038354,0.00013,2]
[337313365,1725594639853,-545.88666973,0.00013,2]
[337313593,1725594642524,-398928.5650842,0.00013,2]
[337313595,1725594642535,-10617.27147713,0.00013,2]
[337313605,1725594642646,-490.45,0.00013,2]
[337313606,1725594642712,-382.00631411,0.00013,2]
[337313712,1725594644401,-7832.58094494,0.00013,2]
[337313713,1725594644415,-1578.62846982,0.00013,2]
[337313714,1725594644426,-496.2367825,0.00013,2]
[337313716,1725594645446,-9769.14972056,0.00013,2]
[337313717,1725594645457,-1034.05360558,0.00013,2]
[337313718,1725594645468,-1206.39021026,0.00013,2]
[337313719,1725594645517,-453.46218221,0.00013,2]
[337313720,1725594645528,-4919.07120143,0.00013,2]
[337313721,1725594645539,-549.82017062,0.00013,2]
[337313722,1725594645589,-585.71,0.00013,2]
[337313723,1725594645600,-729.12371714,0.00013,2]
[337313724,1725594645611,-1753.85498398,0.00013,2]
[337313725,1725594645622,-740.40033588,0.00013,2]
[337313726,1725594645654,-1919.57705919,0.00013,2]
[337313727,1725594645666,-447.36994481,0.00013,2]
[337313728,1725594645721,-1185.57,0.00013,2]
[337313729,1725594645796,-939.883994,0.00013,2]
[337313730,1725594645807,-6772.36392534,0.00013,2]
[337313734,1725594809529,500.0,0.00025279,120]
[337313736,1725595057218,252.3667816,0.00027,120]
[337313737,1725595112464,157.66,0.0001019,2]
[337313740,1725595389807,750.0,0.00011,2]
[337313741,1725595407540,500.0,0.00025279,120]
[337313751,1725595648051,170.4,0.00011646,2]
[337313754,1725595653927,157.66,9.728e-05,2]
[337313756,1725595694995,-564.36,0.0001206,2]
[337313757,1725595695026,-500.0,0.0001206,2]
[337313759,1725595695055,-250.0,0.00012077,2]
[337313761,1725595695084,-1000.0,0.00012077,2]
[337313763,1725595695116,-300.0,0.00012079,2]
[337313765,1725595695144,-681.24,0.0001208,2]
[337313766,1725595695173,-3956.53097975,0.0001208,2]
[337313767,1725595695212,-6815.05984511,0.0001208,2]
[337313771,1725595719787,-269.42,0.00012087,2]
[337313773,1725595719815,-6690.1397,0.00012114,2]
[337313774,1725595719845,-152.27,0.00012131,2]
[337313776,1725595719873,-152.27,0.00012136,2]
[337313778,1725595719901,-269.37509624,0.00012142,2]
[337313779,1725595719937,-304.77305665,0.00012142,2]
[337313780,1725595719970,-7033.92195642,0.00012142,2]
[337313781,1725595719999,-152.27,0.00012142,2]
[337313782,1725595720027,-152.27,0.00012147,2]
[337313783,1725595720054,-152.27,0.00012153,2]
[337313784,1725595720081,-42.74283982,0.00012158,2]
[337313785,1725595744917,-109.52716018,0.00012158,2]
[337313786,1725595744948,-152.27,0.00012164,2]
[337313787,1725595744977,-152.27,0.00012169,2]
[337313788,1725595745006,-885.0,0.00012169,2]
[337313789,1725595745034,-152.27,0.00012175,2]
[337313790,1725595745064,-152.27,0.0001218,2]
[337313791,1725595745094,-152.27,0.00012186,2]
[337313792,1725595745125,-152.27,0.00012191,2]
[337313793,1725595745153,-300.0,0.00012273,2]
[337313794,1725595745182,-161.0,0.00012273,2]
[337313795,1725595745212,-5471.76208905,0.00012274,2]
[337313796,1725595745250,-3858.41791095,0.00012274,2]
[337313797,1725595745277,-421.24760668,0.00012649,2]
[337313798,1725595745306,-183.3654966,0.000128,2]
[337313799,1725595745336,-157.66,0.00012801,2]
[337313800,1725595745366,-1203.14591849,0.0001287,2]
[337313801,1725595792804,165.83,0.00010959,2]
[337313812,1725595831544,-198.34357151,0.0001287,2]
[337313814,1725595831554,-150.0,0.00012899,2]
[337313816,1725595831563,-11321.27738723,0.000129,7]
[337313820,1725595831598,-678.72261277,0.000129,7]
[337313821,1725595831607,-12000.0,0.000129,7]
[337313822,1725595831617,-2992.85004796,0.000129,7]
[337313823,1725595831627,-1055.69681033,0.000129,7]
[337313824,1725595831651,-345.80403217,0.000129,7]
[337313825,1725595831663,-7730.64910954,0.000129,7]
[337313826,1725595831672,-373.1885,0.000129,2]
[337313827,1725595831682,-28468.7291,0.000129,2]
[337313828,1725595831691,-619.5982,0.000129,2]
[337313829,1725595831700,-5559.00000725,0.000129,2]
[337313830,1725595837664,-592.97143645,0.000129,2]
[337313831,1725595837676,-300.0,0.000129,2]
[337313832,1725595837924,-1305.81,0.000129,2]
[337313833,1725595837936,-451.06075147,0.000129,2]
[337313834,1725595837946,-381.1059,0.000129,2]
[337313835,1725595837955,-600.5021,0.000129,2]
[337313836,1725595837965,-267.33124853,0.000129,2]
[337314314,1725595842688,-447.3484677,0.000129,2]
[337314320,1725595842742,-363.08899998,0.000129,2]
[337314517,1725595844880,-3764.46168379,0.000129,2]
[337314518,1725595844890,-1536.52280688,0.000129,2]
[337314520,1725595844899,-347.88459846,0.000129,2]
[337314522,1725595844908,-501.6846,0.000129,2]
[337314524,1725595844918,-164.38612083,0.000129,2]
[337314526,1725595844927,-158.46,0.0001292,2]
[337314528,1725595844937,-500.6988,0.00012973,2]
[337314530,1725595844946,-2455.78571713,0.00013,2]
[337314597,1725595845745,-502.37598316,0.00012694,2]
[337316247,1725596135421,219.91,0.00011612,2]
[337316248,1725596272001,155.7,0.00010959,2]
[337316249,1725596277799,647.98,0.00011582,2]
[337316250,1725596295123,154.16,9.665e-05,2]
[337316251,1725596359049,6659.42,0.0001161,2]
[337316252,1725596420978,800.0,0.00011581,2]
[337316253,1725596441566,3646.17,0.0001159,2]
[337316254,1725596493598,9699.17,0.00011595,2]
[337316255,1725596497942,250.0,0.00011616,2]
[337316256,1725596513074,200.0,0.00011637,2]
[337316257,1725596626697,177.33,0.00011695,2]
[337316270,1725596929338,-172.0,0.00012407,2]
[337316272,1725596929366,-788.0,0.00012407,2]
[337316274,1725596929394,-410.64,0.00012412,2]
[337316275,1725596929422,-410.64,0.00012415,2]
[337316276,1725596929449,-410.64,0.00012418,2]
[337316277,1725596929477,-410.64,0.00012422,2]
[337316278,1725596929508,-410.64,0.00012425,2]
[337316279,1725596929539,-410.64,0.00012428,2]
[337316280,1725596929568,-410.64,0.00012431,2]
[337316281,1725596929599,-410.64,0.00012435,2]
[337316282,1725596929629,-410.64,0.00012438,2]
[337316283,1725596929660,-410.64,0.00012441,2]
[337316284,1725596929690,-410.64,0.00012444,2]
[337316285,1725596929720,-410.64,0.00012448,2]
[337316286,1725596929750,-410.64,0.00012451,2]
[337316287,1725596929778,-410.64,0.00012454,2]
[337316288,1725596929807,-410.64,0.00012457,2]
[337316289,1725596929836,-410.64,0.00012461,2]
[337316290,1725596929865,-323.22566842,0.00012464,2]
[337316291,1725596929898,-87.41433158,0.00012464,2]
[337316292,1725596929927,-410.64,0.00012467,2]
[337316293,1725596929956,-410.64,0.0001247,2]
[337316294,1725596929984,-300.0,0.00012472,2]
[337316295,1725596930013,-410.64,0.00012474,2]
[337316296,1725596930041,-200.0,0.00012684,2]
[337316297,1725596930071,-150.0,0.00012712,2]
[337316298,1725596930101,-150.0,0.00012715,2]
[337316299,1725596930129,-150.0,0.00012715,2]
[337316300,1725596930158,-150.0,0.0001272,2]
[337316301,1725596930190,-143.75024294,0.00012721,2]
[337316302,1725596947199,154.16,9.919e-05,2]
[337316307,1725597030720,1000.0,0.00011832,2]
[337316315,1725597031850,-421.24760668,0.00012692,2]
[337316316,1725597031859,-6.24975706,0.00012721,2]
[337316317,1725597031869,-150.0,0.00012724,2]
[337316318,1725597031878,-150.0,0.00012733,2]
[337316319,1725597031887,-150.0,0.00012734,2]
[337316320,1725597031896,-150.0,0.00012737,2]
[337316321,1725597031905,-150.0,0.00012755,2]
[337316322,1725597031914,-1500.0,0.00012755,2]
[337316323,1725597031923,-150.0,0.0001276,2]
[337316324,1725597031932,-150.0,0.00012772,2]
[337316325,1725597031941,-150.0,0.00012773,2]
[337316326,1725597031950,-2384.8579692,0.0001278,2]
[337316327,1725597031959,-162.47931086,0.00012786,2]
[337316328,1725597031968,-150.0,0.00012791,2]
[337316329,1725597031977,-150.0,0.00012793,2]
[337316330,1725597031986,-150.0,0.00012797,2]
[337316331,1725597031994,-1732.0,0.000128,2]
[337316332,1725597032003,-150.0,0.0001281,2]
[337316333,1725597032012,-150.0,0.00012812,2]
[337316334,1725597032021,-150.0,0.00012825,2]
[337316335,1725597032029,-150.0,0.00012825,2]
[337316336,1725597032038,-150.0,0.00012825,2]
[337316337,1725597032047,-150.0,0.00012826,2]
[337316338,1725597032056,-150.0,0.00012827,2]
[337316339,1725597032065,-150.0,0.00012829,2]
[337316340,1725597032074,-158.46,0.00012831,2]
[337316341,1725597032084,-150.0,0.00012836,2]
[337316342,1725597032094,-150.0,0.00012837,2]
[337316343,1725597032104,-150.0,0.00012837,2]
[337316344,1725597032113,-150.0,0.00012837,2]
[337316346,1725597032122,-150.0,0.00012855,2]
[337316348,1725597032132,-150.0,0.00012858,2]
[337316350,1725597032141,-150.0,0.00012863,2]
[337316352,1725597032150,-150.0,0.00012865,2]
[337316353,1725597032159,-150.0,0.00012865,2]
[337316354,1725597032168,-150.0,0.00012869,2]
[337316355,1725597032178,-150.0,0.00012877,2]
[337316356,1725597032187,-150.0,0.00012879,2]
[337316357,1725597032196,-150.0,0.00012879,2]
[337316358,1725597032205,-500.0,0.00012879,2]
[337316359,1725597032214,-500.0,0.00012879,2]
[337316360,1725597032223,-500.0,0.00012879,2]
[337316361,1725597032232,-175.83072803,0.00012879,2]
[337316362,1725597032241,-500.0,0.00012879,2]
[337316363,1725597032250,-500.0,0.00012879,2]
[337316364,1725597032260,-500.0,0.00012879,2]
[337316365,1725597032269,-500.0,0.00012879,2]
[337316366,1725597032278,-500.0,0.00012879,2]
[337316367,1725597032288,-500.0,0.00012879,2]
[337316368,1725597032297,-479.03070398,0.00012879,2]
[337316369,1725597032306,-500.0,0.00012879,2]
[337316370,1725597032315,-500.0,0.00012879,2]
[337316371,1725597032324,-500.0,0.00012879,2]
[337316372,1725597032333,-500.0,0.00012879,2]
[337316373,1725597032342,-500.0,0.00012879,2]
[337316374,1725597032352,-500.0,0.00012879,2]
[337316375,1725597032361,-500.0,0.00012879,2]
[337316376,1725597032370,-500.0,0.00012879,2]
[337316377,1725597032379,-500.0,0.00012879,2]
[337316378,1725597032388,-500.0,0.00012879,2]
[337316379,1725597032397,-188.59701822,0.00012879,2]
[337316380,1725597032406,-500.0,0.00012879,2]
[337316381,1725597032614,-500.0,0.00012879,2]
[337316382,1725597032625,-500.0,0.00012879,2]
[337316383,1725597032635,-500.0,0.00012879,2]
[337316384,1725597032644,-134339.14555304,0.0001288,2]
[337316387,1725597037887,-575.0,0.0001288,2]
[337316388,1725597037942,-303.16003,0.0001288,2]
[337316389,1725597037954,-315.0,0.0001288,2]
[337316390,1725597037965,-3157.23284698,0.0001288,2]
[337316391,1725597037977,-12680.68088358,0.0001288,2]
[337316392,1725597037988,-16471.48244403,0.0001288,2]
[337316393,1725597038267,-6507.16211607,0.0001288,2]
[337316451,1725597039936,-500.04532989,0.0001288,2]
[337316452,1725597039993,-310.14703584,0.0001288,2]
[337316453,1725597040004,-3127.95063536,0.0001288,2]
[337316454,1725597040268,-4116.27805185,0.0001288,2]
[337316455,1725597040279,-3436.69540107,0.0001288,2]
[337316456,1725597040291,-67956.22707232,0.0001288,2]
[337316457,1725597040301,-19941.57543666,0.0001288,2]
[337316458,1725597040310,-150.0,0.00012886,2]
[337316459,1725597040319,-150.0,0.00012888,2]
[337316461,1725597040329,-150.0,0.0001289,2]
[337316463,1725597040338,-150.0,0.00012896,2]
[337316465,1725597040348,-150.0,0.00012896,2]
[337316467,1725597040357,-150.0,0.00012896,2]
[337316469,1725597040366,-1290.4056,0.000129,2]
[337316471,1725597040376,-7109.2575,0.000129,2]
[337316472,1725597040385,-152.24251615,0.000129,2]
[337316474,1725597040394,-41574.6985,0.000129,2]
[337316476,1725597040403,-184.66682609,0.000129,2]
[337316477,1725597040412,-175.06017738,0.000129,2]
[337316479,1725597040422,-321.35952285,0.000129,2]
[337316481,1725597040431,-2376.72977385,0.000129,2]
[337316482,1725597040440,-150.0,0.00012909,2]
[337316484,1725597040450,-150.0,0.00012914,2]
[337316486,1725597040459,-150.0,0.00012915,2]
[337316487,1725597040468,-150.0,0.0001292,2]
[337316489,1725597040477,-150.0,0.0001292,2]
[337316491,1725597040486,-150.0,0.00012925,2]
[337316492,1725597040496,-150.0,0.00012936,2]
[337316494,1725597040506,-150.0,0.00012941,2]
[337316495,1725597040516,-150.0,0.00012945,2]
[337316497,1725597040528,-1535.64457774,0.00012946,2]
[337316498,1725597040538,-247.62793698,0.00012948,2]
[337316500,1725597040548,-150.0,0.00012952,2]
[337316501,1725597040557,-150.0,0.00012955,2]
[337316503,1725597040566,-150.0,0.00012964,2]
[337316504,1725597040577,-150.0,0.00012971,2]
[337316506,1725597040586,-169.64206625,0.00012973,2]
[337316508,1725597040596,-545.62357753,0.00012973,2]
[337316509,1725597040607,-150.0,0.00012973,2]
[337316511,1725597040617,-150.0,0.00012976,2]
[337316512,1725597040627,-150.0,0.00012983,2]
[337316513,1725597040637,-150.0,0.00012985,2]
[337316514,1725597040646,-2048.9749216,0.00012996,2]
[337316515,1725597040655,-68630.2639946,0.00013,2]
[337316516,1725597043006,-27020.25076693,0.00013,2]
[337316517,1725597043017,-6428.28499988,0.00013,2]
[337316518,1725597043029,-630.18302999,0.00013,2]
[337316519,1725597043066,-42747.32697915,0.00013,2]
[337316520,1725597043077,-883.32723249,0.00013,2]
[337316521,1725597043124,-2402.3,0.00013,2]